fUSD/lending_fUSD_20251014
["ID","MTS","AMOUNT","RATE_DAILY","PERIOD"]
[391275357,1760463047280,-1559.69,0.00017534,2]
[391275358,1760463047289,-679.38,0.00017534,2]
[391275359,1760463047299,-772.42,0.00017534,2]
[391275360,1760463047308,-500.0,0.00017534,2]
[391275361,1760463047318,-500.0,0.00017534,2]
[391275362,1760463047328,-500.0,0.00017534,2]
[391275363,1760463047337,-2364.32,0.00017534,2]
[391275364,1760463047347,-615.49,0.00017534,2]
[391275365,1760463047357,-500.0,0.00017534,2]
[391275366,1760463047366,-861.88,0.00017534,2]
[391275367,1760463047376,-500.0,0.00017534,2]
[391275368,1760463047385,-883.84,0.00017534,2]
[391275369,1760463047394,-500.0,0.00017534,2]
[391275370,1760463047403,-1175.52,0.00017534,2]
[391275371,1760463047413,-1327.11,0.00017534,2]
[391275372,1760463047428,-500.0,0.00017534,2]
[391275373,1760463047437,-500.0,0.00017534,2]
[391275374,1760463047447,-500.0,0.00017534,2]
[391275375,1760463047456,-688.16,0.00017534,2]
[391275376,1760463047466,-2025.96,0.00017534,2]
[391275377,1760463047476,-625.47,0.00017534,2]
[391275378,1760463047486,-500.0,0.00017534,2]
[391275379,1760463047495,-3009.4,0.00017534,2]
[391275380,1760463047507,-2381.03,0.00017534,2]
[391275381,1760463047517,-1130.6,0.00017534,2]
[391275382,1760463047527,-500.0,0.00017534,2]
[391275383,1760463047536,-500.0,0.00017534,2]
[391275384,1760463047546,-1305.29,0.00017534,2]
[391275385,1760463047555,-4971.01,0.00017534,2]
[391275386,1760463047564,-882.25,0.00017534,2]
[391275387,1760463047574,-3145.83,0.00017534,2]
[391275388,1760463047583,-928.64,0.00017534,2]
[391275389,1760463047593,-500.0,0.00017534,2]
[391275390,1760463047603,-500.0,0.00017534,2]
[391275391,1760463047613,-538.17,0.00017534,2]
[391275392,1760463047623,-642.18,0.00017534,2]
[391275393,1760463047632,-500.0,0.00017534,2]
[391275394,1760463047641,-500.0,0.00017534,2]
[391275395,1760463047651,-500.0,0.00017534,2]
[391275396,1760463047661,-500.0,0.00017534,2]
[391275397,1760463047676,-1153.22,0.00017534,2]
[391275398,1760463047686,-500.0,0.00017534,2]
[391275399,1760463047695,-1582.16,0.00017534,2]
[391275400,1760463047705,-500.0,0.00017534,2]
[391275401,1760463047714,-1022.72,0.00017534,2]
[391275402,1760463047724,-500.0,0.00017534,2]
[391275403,1760463047734,-500.0,0.00017534,2]
[391275404,1760463047743,-500.0,0.00017534,2]
[391275405,1760463047753,-500.0,0.00017534,2]
[391275406,1760463047762,-500.0,0.00017534,2]
[391275407,1760463047772,-500.0,0.00017534,2]
[391275408,1760463047782,-565.53,0.00017534,2]
[391275409,1760463047791,-500.0,0.00017534,2]
[391275410,1760463047801,-500.0,0.00017534,2]
[391275411,1760463047810,-421.61,0.00017788,2]
[391275412,1760463047821,-1305.58,0.00017808,2]
[391275413,1760463047830,-1152.07,0.00017808,2]
[391275414,1760463047840,-1611.0,0.00017808,2]
[391275415,1760463047849,-500.0,0.00017808,2]
[391275416,1760463047858,-500.0,0.00017808,2]
[391275417,1760463047868,-500.0,0.00017808,2]
[391275418,1760463047877,-1982.2,0.00017808,2]
[391275419,1760463047887,-520.88,0.00017808,2]
[391275420,1760463047896,-500.0,0.00017808,2]
[391275421,1760463047905,-1559.69,0.00017808,2]
[391275422,1760463047915,-679.38,0.00017808,2]
[391275423,1760463047925,-772.42,0.00017808,2]
[391275424,1760463047935,-500.0,0.00017808,2]
[391275425,1760463047944,-166.19725784,0.00017808,2]
[391275426,1760463047953,-500.0,0.00017808,2]
[391275427,1760463047963,-2364.32,0.00017808,2]
[391275428,1760463047972,-615.49,0.00017808,2]
[391275429,1760463047981,-500.0,0.00017808,2]
[391275430,1760463047990,-861.88,0.00017808,2]
[391275431,1760463047999,-500.0,0.00017808,2]
[391275432,1760463048009,-883.84,0.00017808,2]
[391275433,1760463048019,-500.0,0.00017808,2]
[391275434,1760463048029,-1175.52,0.00017808,2]
[391275435,1760463048039,-1327.11,0.00017808,2]
[391275436,1760463048049,-500.0,0.00017808,2]
[391275437,1760463048059,-500.0,0.00017808,2]
[391275438,1760463048068,-500.0,0.00017808,2]
[391275439,1760463048078,-688.16,0.00017808,2]
[391275440,1760463048088,-2025.96,0.00017808,2]
[391275441,1760463048098,-625.47,0.00017808,2]
[391275442,1760463048107,-500.0,0.00017808,2]
[391275443,1760463048117,-1104.82990829,0.00017808,2]
[391275444,1760463048145,-1904.57009171,0.00017808,2]
[391275445,1760463048155,-387.40789133,0.00017808,2]
[391275446,1760463048167,-1993.62210867,0.00017808,2]
[391275447,1760463048176,-717.08316113,0.00017808,2]
[391275448,1760463048187,-413.51683887,0.00017808,2]
[391275449,1760463048197,-500.0,0.00017808,2]
[391275450,1760463048206,-500.0,0.00017808,2]
[391275451,1760463048216,-1305.29,0.00017808,2]
[391275452,1760463048225,-4971.01,0.00017808,2]
[391275453,1760463048235,-882.25,0.00017808,2]
[391275454,1760463048244,-3145.83,0.00017808,2]
[391275455,1760463048253,-928.64,0.00017808,2]
[391275456,1760463048263,-500.0,0.00017808,2]
[391275457,1760463048272,-500.0,0.00017808,2]
[391275458,1760463048282,-538.17,0.00017808,2]
[391275459,1760463048291,-642.18,0.00017808,2]
[391275460,1760463048300,-500.0,0.00017808,2]
[391275461,1760463048310,-48.6711167,0.00017808,2]
[391275462,1760463048322,-451.3288833,0.00017808,2]
[391275463,1760463048331,-500.0,0.00017808,2]
[391275464,1760463048342,-500.0,0.00017808,2]
[391275465,1760463048352,-1153.22,0.00017808,2]
[391275466,1760463048361,-500.0,0.00017808,2]
[391275467,1760463048371,-1582.16,0.00017808,2]
[391275468,1760463048380,-500.0,0.00017808,2]
[391275469,1760463048391,-1022.72,0.00017808,2]
[391275470,1760463048400,-500.0,0.00017808,2]
[391275471,1760463048410,-158.1967418,0.00017808,2]
[391275472,1760463048421,-102.05114953,0.00017808,2]
[391275473,1760463048435,-397.94885047,0.00017808,2]
[391275474,1760463048444,-500.0,0.00017808,2]
[391275475,1760463048453,-141.10009952,0.00017808,2]
[391275476,1760463048474,-358.89990048,0.00017808,2]
[391275477,1760463048484,-500.0,0.00017808,2]
[391275478,1760463048493,-565.53,0.00017808,2]
[391275479,1760463048504,-500.0,0.00017808,2]
[391275480,1760463048513,-500.0,0.00017808,2]
[391275481,1760463048522,-250.0,0.00017921,2]
[391275482,1760463048531,-2870.4,0.00017921,2]
[391275483,1760463048541,-154.23,0.00017964,2]
[391275484,1760463048550,-500.0,0.00018022,2]
[391275485,1760463048560,-250.0,0.00018038,7]
[391275486,1760463048570,-271.96920734,0.00018081,2]
[391275487,1760463048579,-277.35679052,0.00018081,2]
[391275488,1760463048589,-1305.58,0.00018082,2]
[391275489,1760463048598,-1152.07,0.00018082,2]
[391275490,1760463048607,-1611.0,0.00018082,2]
[391275491,1760463048617,-350.42780921,0.00018082,2]
[391275492,1760463048626,-500.0,0.00018082,2]
[391275493,1760463048750,-500.0,0.00018082,2]
[391275494,1760463048760,-1982.2,0.00018082,2]
[391275495,1760463048769,-520.88,0.00018082,2]
[391275496,1760463048779,-500.0,0.00018082,2]
[391275497,1760463048788,-1559.69,0.00018082,2]
[391275498,1760463048797,-679.38,0.00018082,2]
[391275499,1760463048806,-222.79087005,0.00018082,2]
[391275500,1760463202763,251.99,8.255e-05,2]
[391275501,1760463203349,251.99,8.689e-05,2]
[391275502,1760463203490,251.99,9.124e-05,2]
[391275503,1760463203804,251.99,9.558e-05,2]
[391275504,1760463203996,251.99,9.993e-05,2]
[391275505,1760463204929,251.99,0.00010427,2]
[391275506,1760463205024,251.99,0.00010862,2]
[391275507,1760463205204,251.99,0.00011296,2]
[391275508,1760463205306,251.99,0.0001173,2]
[391275509,1760463205389,251.99,0.00012165,2]
[391275510,1760463205475,251.99,0.00012599,2]
[391275516,1760463920997,-251.99,0.00013034,2]
[391275517,1760463921019,-824.08556549,0.0001308,2]
[391275518,1760463924894,-174.88706747,0.0001308,2]
[391275519,1760463927232,-935.3901151,0.0001308,2]
[391275520,1760464011616,-284.45899241,0.00013,5]
[391275521,1760464013980,-306.52,0.00013,5]
[391275522,1760464016920,-302.5993359,0.00013,5]
[391275523,1760464018960,-244.70049788,0.00013,5]
[391275524,1760464023146,-226.68396734,0.00013,5]
[391275525,1760464025917,-315.89737769,0.00013,5]
[391275526,1760464027312,-1766.01246948,0.00013,5]
[391275527,1760464037445,-163.02262631,0.0001298,2]
[391275528,1760464037469,-65.63725194,0.0001308,2]
[391275529,1760464037491,-5.32765227,0.00013127,2]
[391275582,1760464231743,-623.06060246,0.00013187,2]
[391275584,1760464231753,-2000.0,0.00013196,2]
[391275586,1760464231763,-1264.56212187,0.00013196,2]
[391275588,1760464231778,-3063.0282647,0.000132,2]
[391275590,1760464231789,-501.46850775,0.000132,2]
[391275593,1760464231808,-568.63769063,0.000132,2]
[391275594,1760464231821,-1393.06787826,0.000132,2]
[391275595,1760464231830,-251.99,0.00013468,2]
[391275596,1760464231839,-1200.0,0.00013698,2]
[391275597,1760464231847,-500.0,0.00013699,2]
[391275598,1760464231857,-787.281843,0.00013833,2]
[391275599,1760464231866,-251.99,0.00013903,2]
[391275600,1760464231875,-1200.0,0.00014299,2]
[391275601,1760464231884,-115.79752972,0.00014299,2]
[391275602,1760464231896,-184.20247028,0.00014299,2]
[391275603,1760464231905,-195.0,0.000143,2]
[391275604,1760464231914,-1920.79752972,0.000143,2]
[391275605,1760464231926,-401.77271717,0.000143,2]
[391275606,1760464231963,-177.42975311,0.000143,2]
[391275607,1760464231973,-305.15013849,0.000143,2]
[391275608,1760464231982,-999.99,0.00014334,2]
[391275609,1760464231992,-1791.63,0.00014334,2]
[391275610,1760464232001,-3046.53754078,0.00014334,2]
[391275611,1760464232014,-6953.45245922,0.00014334,2]
[391275612,1760464232024,-2035.1,0.00014334,2]
[391275613,1760464232034,-308.59,0.00014335,2]
[391275614,1760464232044,-150.99,0.00014335,2]
[391275615,1760464232054,-865.17,0.00014335,2]
[391275617,1760464232064,-150.0,0.00014336,2]
[391275619,1760464232074,-250.0,0.00014337,2]
[391275621,1760464232085,-2000.0,0.00014337,2]
[391275623,1760464232094,-2500.0,0.00014337,2]
[391275625,1760464232103,-2249.96250461,0.00014337,2]
[391275627,1760464232113,-302.57927306,0.00014337,2]
[391275629,1760464232123,-251.99,0.00014337,2]
[391275631,1760464232133,-150.0,0.00014388,2]
[391275633,1760464232143,-300.0,0.00014388,2]
[391275635,1760464232154,-300.0,0.00014388,2]
[391275637,1760464232164,-195.0,0.0001444,2]
[391275639,1760464232175,-2000.0,0.0001444,2]
[391275642,1760464232185,-195.0,0.0001444,2]
[391275643,1760464232194,-251.99,0.00014772,2]
[391275645,1760464232204,-214.07716559,0.00014927,2]
[391275661,1760464232315,-400.96283441,0.00014927,2]
[391275663,1760464232324,-315.0,0.00015047,2]
[391275665,1760464232333,-1680.0,0.00015067,2]
[391275667,1760464232343,-270.0,0.00015204,2]
[391275669,1760464232353,-251.48697255,0.00015206,2]
[391275671,1760464232365,-0.50302745,0.00015206,2]
[391275673,1760464232374,-150.0,0.00015432,2]
[391275675,1760464232383,-117.89599125,0.00015541,2]
[391275677,1760464232395,-54.37400875,0.00015541,2]
[391275679,1760464232404,-251.99,0.00015641,2]
[391275681,1760464232414,-151.0,0.00015834,2]
[391275684,1760464232424,-151.0,0.00015834,2]
[391275686,1760464232433,-151.0,0.00015834,2]
[391275688,1760464232443,-23.23204939,0.00015834,2]
[391275690,1760464232456,-127.76795061,0.00015834,2]
[391275692,1760464232466,-151.0,0.00015834,2]
[391275694,1760464232475,-275.22888194,0.00015834,2]
[391275696,1760464232485,-151.0,0.00015834,2]
[391275698,1760464232495,-151.0,0.00015834,2]
[391275700,1760464232504,-151.0,0.00015834,2]
[391275702,1760464232514,-200.0,0.00015834,2]
[391275704,1760464232523,-171.65884178,0.00015834,2]
[391275706,1760464232532,-1005.16260501,0.00015843,2]
[391275708,1760464232541,-994.48,0.00015844,2]
[391275710,1760464232552,-200.0,0.000159,5]
[391275712,1760464232561,-200.9732501,0.00016075,2]
[391275715,1760464232573,-51.0167499,0.00016075,2]
[391275717,1760464232582,-519.0732501,0.00016337,2]
[391275719,1760464232593,-1347.37386767,0.00016337,2]
[391275721,1760464232603,-217.45918643,0.00016338,2]
[391275723,1760464232613,-2497.24352797,0.00016338,2]
[391275726,1760464232631,-5487.60867155,0.00016338,2]
[391275728,1760464232640,-1569.927,0.00016411,2]
[391275730,1760464232650,-354.29,0.00016427,2]
[391275732,1760464232659,-354.29,0.00016427,2]
[391275734,1760464232670,-218.82131839,0.00016428,2]
[391275736,1760464232679,-354.29,0.00016428,2]
[391275738,1760464232688,-354.29,0.00016428,2]
[391275740,1760464232698,-354.29,0.00016428,2]
[391275742,1760464232708,-500.0,0.00016436,2]
[391275744,1760464232718,-500.0,0.00016436,2]
[391275746,1760464232727,-513.24142061,0.00016436,2]
[391275748,1760464232737,-60086.67562086,0.00016437,2]
[391275751,1760464232749,-485.87772551,0.00016437,2]
[391275793,1760464237730,-15914.4587627,0.00016437,2]
[391275794,1760464237742,-20249.999986,0.00016437,2]
[391275795,1760464237753,-1240.66059968,0.00016437,2]
[391275796,1760464237786,-407.603,0.00016437,2]
[391275797,1760464237796,-981.36511929,0.00016437,2]
[391275798,1760464237893,-78775.25327122,0.00016437,2]
[391275799,1760464237906,-30414.63439727,0.00016437,2]
[391275800,1760464237916,-176.24128544,0.00016437,2]
[391275801,1760464237926,-500.0,0.00016437,2]
[391275802,1760464237935,-205.14235298,0.00016437,2]
[391275803,1760464237946,-500.0,0.00016437,2]
[391275805,1760464237955,-223.41536742,0.00016437,2]
[391275807,1760464237966,-482.03439173,0.00016437,2]
[391275808,1760464237975,-187.96919064,0.00016437,2]
[391275809,1760464237984,-159.097,0.00016437,2]
[391275810,1760464237994,-574.53,0.00016438,2]
[391275811,1760464238003,-500.0,0.00016438,2]
[391275813,1760464238013,-1250.3,0.00016438,2]
[391275814,1760464238023,-500.0,0.00016438,2]
[391275815,1760464238032,-2141.88,0.00016438,2]
[391275816,1760464238043,-2057.94,0.00016438,2]
[391275817,1760464238053,-500.0,0.00016438,2]
[391275819,1760464238062,-1082.47,0.00016438,2]
[391275821,1760464238072,-1296.33,0.00016438,2]
[391275823,1760464238081,-636.23,0.00016438,2]
[391275825,1760464238091,-1190.18,0.00016438,2]
[391275827,1760464238101,-500.0,0.00016438,2]
[391275829,1760464238111,-2096.25,0.00016438,2]
[391275832,1760464238121,-500.0,0.00016438,2]
[391275834,1760464238131,-500.0,0.00016438,2]
[391275836,1760464238141,-172.659396,0.00016438,2]
[391275838,1760464238151,-500.0,0.00016438,2]
[391275840,1760464238160,-500.0,0.00016438,2]
[391275842,1760464238170,-1179.8,0.00016438,2]
[391275844,1760464238180,-500.0,0.00016438,2]
[391275846,1760464238190,-825.61,0.00016438,2]
[391275848,1760464238200,-887.29,0.00016438,2]
[391275850,1760464238209,-500.0,0.00016438,2]
[391275852,1760464238220,-500.0,0.00016438,2]
[391275854,1760464238229,-500.0,0.00016438,2]
[391275855,1760464238238,-500.0,0.00016438,2]
[391275856,1760464238248,-500.0,0.00016438,2]
[391275857,1760464238257,-500.0,0.00016438,2]
[391275858,1760464238267,-500.0,0.00016438,2]
[391275859,1760464238276,-514.93363163,0.00016438,2]
[391275860,1760464238285,-500.0,0.00016438,2]
[391275861,1760464238295,-500.0,0.00016438,2]
[391275862,1760464238304,-500.0,0.00016438,2]
[391275863,1760464238314,-500.0,0.00016438,2]
[391275864,1760464238323,-1479.61,0.00016438,2]
[391275865,1760464238333,-500.0,0.00016438,2]
[391275867,1760464238342,-500.0,0.00016438,2]
[391275869,1760464238351,-500.0,0.00016438,2]
[391275871,1760464238360,-500.0,0.00016438,2]
[391275873,1760464238370,-500.0,0.00016438,2]
[391275875,1760464238379,-500.0,0.00016438,2]
[391275877,1760464238388,-500.0,0.00016438,2]
[391275879,1760464238397,-500.0,0.00016438,2]
[391275881,1760464238405,-500.0,0.00016438,2]
[391275883,1760464238415,-500.0,0.00016438,2]
[391275885,1760464238424,-500.0,0.00016438,2]
[391275887,1760464238433,-1005.36,0.00016438,2]
[391275888,1760464238442,-500.0,0.00016438,2]
[391275891,1760464238451,-500.0,0.00016438,2]
[391275892,1760464238461,-500.0,0.00016438,2]
[391275894,1760464238470,-500.0,0.00016438,2]
[391275896,1760464238480,-1779.16,0.00016438,2]
[391275898,1760464238490,-500.0,0.00016438,2]
[391275900,1760464238499,-707.75,0.00016438,2]
[391275902,1760464238508,-500.0,0.00016438,2]
[391275904,1760464238518,-552.53660212,0.00016438,2]
[391275906,1760464238527,-596.79,0.00016438,2]
[391275908,1760464238536,-500.0,0.00016438,2]
[391275910,1760464238545,-500.0,0.00016438,2]
[391275912,1760464238555,-500.0,0.00016438,2]
[391275914,1760464238564,-500.0,0.00016438,2]
[391275917,1760464238574,-500.0,0.00016438,2]
[391275919,1760464238584,-500.0,0.00016438,2]
[391275920,1760464238597,-579.82,0.00016438,2]
[391275923,1760464238606,-500.0,0.00016438,2]
[391275924,1760464238615,-500.0,0.00016438,2]
[391275926,1760464238625,-553.95,0.00016438,2]
[391275928,1760464238634,-401.50931394,0.00016438,2]
[391275931,1760464238643,-500.0,0.00016438,2]
[391275933,1760464238653,-2078.47,0.00016438,2]
[391275935,1760464238663,-782.92,0.00016438,2]
[391275937,1760464238672,-500.0,0.00016438,2]
[391275938,1760464238683,-1260.49,0.00016438,2]
[391275940,1760464238693,-709.14,0.00016438,2]
[391275942,1760464238703,-1058.56,0.00016438,2]
[391275944,1760464238713,-1168.79,0.00016438,2]
[391275946,1760464238724,-500.0,0.00016438,2]
[391275948,1760464238733,-1338.65,0.00016438,2]
[391275950,1760464238742,-531.61,0.00016438,2]
[391275952,1760464238752,-500.0,0.00016438,2]
[391275954,1760464238761,-727.82,0.00016438,2]
[391275956,1760464238772,-500.0,0.00016438,2]
[391275958,1760464238784,-1086.0,0.00016438,2]
[391275960,1760464238794,-922.53,0.00016438,2]
[391275962,1760464238803,-500.0,0.00016438,2]
[391275964,1760464238813,-703.8,0.00016438,2]
[391275966,1760464238822,-591.9,0.00016438,2]
[391275968,1760464238831,-500.0,0.00016438,2]
[391275970,1760464238842,-1306.42,0.00016438,2]
[391275972,1760464238852,-1793.42,0.00016438,2]
[391275974,1760464238862,-500.0,0.00016438,2]
[391275976,1760464238872,-1378.91,0.00016438,2]
[391275978,1760464238881,-500.0,0.00016438,2]
[391275980,1760464238891,-530.79,0.00016438,2]
[391275982,1760464238902,-500.0,0.00016438,2]
[391275984,1760464238911,-500.0,0.00016438,2]
[391275986,1760464238921,-500.0,0.00016438,2]
[391275988,1760464238931,-549.03,0.00016438,2]
[391275991,1760464238941,-500.0,0.00016438,2]
[391275993,1760464238952,-1235.46,0.00016438,2]
[391275994,1760464238963,-500.0,0.00016438,2]
[391275996,1760464238974,-2953.74,0.00016438,2]
[391275998,1760464238984,-547.41,0.00016438,2]
[391276000,1760464238994,-2268.32,0.00016438,2]
[391276002,1760464239004,-500.0,0.00016438,2]
[391276004,1760464239014,-500.0,0.00016438,2]
[391276006,1760464239025,-693.13,0.00016438,2]
[391276008,1760464239035,-1239.84,0.00016438,2]
[391276010,1760464239046,-718.26,0.00016438,2]
[391276013,1760464239056,-500.0,0.00016438,2]
[391276015,1760464239067,-564.41,0.00016438,2]
[391276017,1760464239077,-500.0,0.00016438,2]
[391276019,1760464239086,-500.0,0.00016438,2]
[391276020,1760464239096,-341.52009369,0.00016438,2]
[391276022,1760464239106,-577.23697718,0.00016438,2]
[391276029,1760464239160,-593.75302282,0.00016438,2]
[391276031,1760464239170,-500.0,0.00016438,2]
[391276033,1760464239181,-490.9267643,0.00016438,2]
[391276035,1760464239191,-500.0,0.00016438,2]
[391276037,1760464239201,-500.0,0.00016438,2]
[391276039,1760464239213,-500.0,0.00016438,2]
[391276041,1760464239223,-500.0,0.00016438,2]
[391276043,1760464239233,-1349.01,0.00016438,2]
[391276045,1760464239243,-805.67941288,0.00016438,2]
[391276123,1760464239934,-707.86058712,0.00016438,2]
[391276125,1760464239944,-1101.29,0.00016438,2]
[391276127,1760464239954,-500.0,0.00016438,2]
[391276129,1760464239967,-500.0,0.00016438,2]
[391276131,1760464239976,-1862.64,0.00016438,2]
[391276133,1760464239986,-625.71,0.00016438,2]
[391276135,1760464239995,-444.46041287,0.00016438,2]
[391276151,1760464240147,-88.06958713,0.00016438,2]
[391276153,1760464240156,-500.0,0.00016438,2]
[391276155,1760464240166,-500.0,0.00016438,2]
[391276157,1760464240175,-500.0,0.00016438,2]
[391276159,1760464240183,-954.8654873,0.00016438,2]
[391276170,1760464240276,-259.0345127,0.00016438,2]
[391276172,1760464240284,-500.0,0.00016438,2]
[391276175,1760464240292,-425.6654873,0.00016438,2]
[391276184,1760464240365,-347.4345127,0.00016438,2]
[391276186,1760464240374,-1321.61,0.00016438,2]
[391276188,1760464240384,-780.58,0.00016438,2]
[391276191,1760464240392,-500.0,0.00016438,2]
[391276193,1760464240400,-223.30960805,0.00016438,2]
[391276195,1760464240411,-1164.50039195,0.00016438,2]
[391276197,1760464240419,-948.33,0.00016438,2]
[391276199,1760464240426,-500.0,0.00016438,2]
[391276201,1760464240433,-500.0,0.00016438,2]
[391276203,1760464240440,-434.7300976,0.00016438,2]
[391276206,1760464240451,-65.2699024,0.00016438,2]
[391276207,1760464240463,-500.0,0.00016438,2]
[391276208,1760464240472,-500.0,0.00016438,2]
[391276209,1760464240481,-500.0,0.00016438,2]
[391276210,1760464240490,-154.1286088,0.00016438,2]
[391276215,1760464240557,-345.8713912,0.00016438,2]
[391276217,1760464240565,-500.0,0.00016438,2]
[391276218,1760464240571,-500.0,0.00016438,2]
[391276220,1760464240578,-602.08404912,0.00016438,2]
[391276224,1760464240597,-197.95595088,0.00016438,2]
[391276226,1760464240606,-345.43535293,0.00016438,2]
[391276242,1760464240740,-151.00000016,0.00016438,2]
[391276244,1760464240751,-3.56464691,0.00016438,2]
[391276246,1760464240761,-500.0,0.00016438,2]
[391276248,1760464240771,-183.43535391,0.00016438,2]
[391276251,1760464240786,-316.56464609,0.00016438,2]
[391276253,1760464240795,-500.0,0.00016438,2]
[391276255,1760464240805,-500.0,0.00016438,2]
[391276257,1760464240814,-500.0,0.00016438,2]
[391276259,1760464240824,-423.98967463,0.00016438,2]
[391276261,1760464240836,-76.01032537,0.00016438,2]
[391276263,1760464240846,-500.0,0.00016438,2]
[391276265,1760464240856,-1936.96,0.00016438,2]
[391276267,1760464240866,-500.0,0.00016438,2]
[391276269,1760464240876,-500.0,0.00016438,2]
[391276271,1760464240885,-484.47833785,0.00016438,2]
[391276274,1760464240904,-15.52166215,0.00016438,2]
[391276275,1760464240913,-500.0,0.00016438,2]
[391276277,1760464240923,-500.0,0.00016438,2]
[391276279,1760464240932,-500.0,0.00016438,2]
[391276281,1760464240942,-500.0,0.00016438,2]
[391276283,1760464240951,-79.34384119,0.00016438,2]
[391276285,1760464240966,-420.65615881,0.00016438,2]
[391276287,1760464240975,-500.0,0.00016438,2]
[391276289,1760464240985,-1126.49,0.00016438,2]
[391276291,1760464240994,-500.0,0.00016438,2]
[391276293,1760464241004,-626.21,0.00016438,2]
[391276295,1760464241014,-251.67321062,0.00016438,2]
[391276297,1760464241026,-248.32678938,0.00016438,2]
[391276300,1760464241037,-500.0,0.00016438,2]
[391276303,1760464241053,-878.86,0.00016438,2]
[391276306,1760464241073,-689.03,0.00016438,2]
[391276309,1760464241092,-827.35,0.00016438,2]
[391276312,1760464241112,-2440.56,0.00016438,2]
[391276314,1760464241127,-500.0,0.00016438,2]
[391276317,1760464241146,-500.0,0.00016438,2]
[391276320,1760464241164,-500.0,0.00016438,2]
[391276323,1760464241182,-500.0,0.00016438,2]
[391276326,1760464241202,-936.46,0.00016438,2]
[391276329,1760464241219,-500.0,0.00016438,2]
[391276332,1760464241239,-500.0,0.00016438,2]
[391276335,1760464241256,-8.38831205,0.00016438,2]
[391276339,1760464241285,-1101.60168795,0.00016438,2]
[391276342,1760464241298,-626.98974905,0.00016438,2]
[391276345,1760464241317,-1645.61025095,0.00016438,2]
[391276348,1760464241338,-344.41081465,0.00016438,2]
[391276351,1760464241353,-500.0,0.00016438,2]
[391276353,1760464241368,-1817.81,0.00016438,2]
[391276356,1760464241383,-1170.67,0.00016438,2]
[391276359,1760464241399,-500.0,0.00016438,2]
[391276362,1760464241414,-950.44,0.00016438,2]
[391276364,1760464241430,-500.0,0.00016438,2]
[391276367,1760464241445,-500.0,0.00016438,2]
[391276370,1760464241461,-500.0,0.00016438,2]
[391276372,1760464241478,-813.76,0.00016438,2]
[391276375,1760464241494,-500.0,0.00016438,2]
[391276378,1760464241509,-500.0,0.00016438,2]
[391276381,1760464241525,-2234.59,0.00016438,2]
[391276383,1760464241541,-1057.86,0.00016438,2]
[391276387,1760464241562,-739.74,0.00016438,2]
[391276390,1760464241580,-1111.06,0.00016438,2]
[391276393,1760464241598,-500.0,0.00016438,2]
[391276395,1760464241616,-1887.82,0.00016438,2]
[391276398,1760464241633,-500.0,0.00016438,2]
[391276401,1760464241650,-574.98,0.00016438,2]
[391276404,1760464241667,-151.0,0.00016438,2]
[391276407,1760464241684,-500.0,0.00016438,2]
[391276410,1760464241701,-948.56,0.00016438,2]
[391276412,1760464241719,-500.0,0.00016438,2]
[391276415,1760464241735,-151.0,0.00016438,2]
[391276418,1760464241752,-500.0,0.00016438,2]